Cogmind - Beta 10 X2 @@@ ROGUE MODE // 2020.06.28 @ 17:14:07 Player: Nikolayag Result: Destroyed by H-55 Commando with Gauss Rifle Performance ------------- Evolutions (1) 500 Regions Visited (6) 1200 Robots Destroyed (72) 360 Value Destroyed (1633) 1633 Prototype IDs (29) 580 Alien Tech Used (0) 0 Bonus (-96) -96 TOTAL SCORE: 4177 Bonus ------- Friendly Fire -96 Cogmind --------- Core Integrity 0/400 Matter 242/300 Energy 273/275 System Corruption 0% Temperature Cool (0) Movement Rolling (110) Ox1 Location -8/Mines Parts ------- > --- POWER (1) -------- Deuterium Engine > --- PROPULSION (2) --- Compact Wheel Compact Wheel > --- UTILITY (4) ------ High-capacity Storage Unit Lightpack 2.0 Light Armor Plating > --- WEAPON (2) ------- Heavy Assault Rifle Improved Assault Rifle > --- INVENTORY (32) --- Deuterium Engine Light Treads Light Treads Light Treads Compact Wheel Compact Wheel Experimental Heat Sink High-capacity Storage Unit Humpback Humpback Medium Battery (200) Large Matter Pod (0) Experimental Sensor Array Experimental Targeting Computer Advanced Weapon Cycler Improved ECM Suite Hardened Medium Armor Plating Hardened Medium Armor Plating Hardened Medium Armor Plating Hardened Medium Armor Plating Hacking Suite AS-neutralizer No. 17b Minigun Minigun 8R-AWN's Boregun 8R-AWN's Boregun Rocket Launcher Plasma Cutter Makeshift Axe Peak State ------------ > --- POWER ------------ Deuterium Engine > --- PROPULSION ------- Compact Wheel Compact Wheel > --- UTILITY ---------- High-capacity Storage Unit Lightpack 2.0 Light Armor Plating > --- WEAPON ----------- Improved Assault Rifle Rocket Launcher > --- INVENTORY -------- Deuterium Engine Light Treads Light Treads Light Treads Compact Wheel Compact Wheel Experimental Heat Sink High-capacity Storage Unit Medium Battery Large Matter Pod Experimental Sensor Array Experimental Targeting Computer Advanced Weapon Cycler Improved ECM Suite Hardened Medium Armor Plating Hardened Medium Armor Plating Hardened Medium Armor Plating Hacking Suite AS-neutralizer No. 17b Heavy Assault Rifle Minigun Minigun 8R-AWN's Boregun 8R-AWN's Boregun Plasma Cutter Makeshift Axe [Rating: 41] Favorites ----------- Power Improved Ion Engine Engine Improved Ion Engine Power Core Light Nuclear Core Propulsion Compact Wheel Treads Light Treads Leg Advanced Myomer Leg Wheel Compact Wheel Utility High-capacity Storage Unit Device Experimental Heat Sink Storage High-capacity Storage Unit Protection Light Armor Plating Weapon Heavy Assault Rifle Energy Gun EM Pulse Gun Energy Cannon Beam Cannon Ballistic Gun Heavy Assault Rifle Launcher Rocket Launcher Special Weapon Plasma Cutter Slashing Weapon Mining Claw Build | -11 -10 -10 -9 -9 -9 -8 ------- Run | Scr Mat Min Mat Min Exi Min Slots Evolved 2 | . . . 2 . . . Power . | . . . . . . . Propulsion . | . . . . . . . Utility 2 | . . . 2 . . . Weapon . | . . . . . . . Parts Attached 84 | 6 5 10 43 16 4 . Power 9 | 1 . 1 6 1 . . Engine 8 | 1 . 1 5 1 . . Core 1 | . . . 1 . . . Reactor . | . . . . . . . Propulsion 18 | 2 2 2 8 4 . . Treads 8 | . . . 8 . . . Leg 1 | . . . . 1 . . Wheel 9 | 2 2 2 . 3 . . Hover . | . . . . . . . Flight . | . . . . . . . Utility 21 | 1 2 . 12 4 2 . Device 3 | . . . . 3 . . Storage 7 | 1 2 . 2 1 1 . Processor . | . . . . . . . Hackware . | . . . . . . . Protection 11 | . . . 10 . 1 . Artifact . | . . . . . . . Weapon 36 | 2 1 7 17 7 2 . Energy Gun 2 | . . 1 1 . . . Energy Cannon 1 | . . 1 . . . . Ballistic Gun 25 | 2 . 5 13 4 1 . Ballistic Cannon . | . . . . . . . Launcher 2 | . . . . 1 1 . Special Weapon 2 | . . . . 2 . . Impact Weapon . | . . . . . . . Slashing Weapon 4 | . 1 . 3 . . . Piercing Weapon . | . . . . . . . Special Melee Weapon . | . . . . . . . Unidentified Prototypes 6 | . . . 1 5 . . Parts Lost 20 | . 1 5 14 . . . Power 3 | . . 1 2 . . . Propulsion 4 | . 1 . 3 . . . Utility 4 | . . . 4 . . . Weapon 9 | . . 4 5 . . . Highest Loss Streak 4 | . 1 4 4 . . . Average Slot Usage (%) 97 | . 99 99 95 97 95 88 Engine 11 | . 14 14 10 11 11 11 Treads 10 | . . . 20 17 . . Wheel 13 | . 27 28 1 4 22 22 Storage 25 | . 27 28 22 25 28 22 Protection 10 | . . . 18 16 10 11 Energy Gun 1 | . . 10 1 . . . Ballistic Gun 17 | . 21 15 18 16 11 22 Launcher 1 | . . . . . 10 . Slashing Weapon 2 | . 6 . 1 . . . Naked Turns . | . . . . . . . Heaviest Build 116 | 12 41 43 95 116 115 . Greatest Support 40 | 20 32 32 40 40 32 . Greatest Overweight (x) 5 | 1 3 1 3 5 3 . Average Overweight (x) 1 | . . 1 1 2 2 . Largest Inventory Capacity 32 | 6 16 16 32 28 32 32 Average Capacity 20 | 5 15 16 19 22 29 32 Most Carried 31 | 5 12 16 20 28 31 31 Average Carried 17 | 3 10 14 18 21 26 31 Final Capacity 32 | 6 16 16 20 28 32 32 Final Carried 31 | 5 12 16 20 26 31 31 Class Distribution -------------------- 55% | Hauler-Mutant 28% | Mutant 15% | Scavenger-Mutant Dominant Class ---------------- Mutant | -10/Materials Scavenger-Mutant | -10/Mines Hauler-Mutant | -9/Materials Hauler-Mutant | -9/Mines Hauler-Mutant | -9/Exiles Hauler-Mutant | -8/Mines Resources | -11 -10 -10 -9 -9 -9 -8 ----------- Run | Scr Mat Min Mat Min Exi Min Matter Collected 2112 | 268 282 136 907 369 150 . Remotely . | . . . . . . . Salvage Created 2926 | 80 305 512 1649 358 22 . Parts 155 | 1 12 25 95 22 . . Haulers Intercepted 1 | . . . 1 . . . Recyclers Shooed 7 | . 1 3 1 2 . . Parts Field Recycled . | . . . . . . . Retrieved Matter . | . . . . . . . Parts Self-Destructed . | . . . . . . . Prevented . | . . . . . . . Kills | -11 -10 -10 -9 -9 -9 -8 ------- Run | Scr Mat Min Mat Min Exi Min Combat Hostiles Destroyed 53 | . 4 4 30 8 7 . Melee 1 | . 1 . . . . . Guns 39 | . 3 2 30 4 . . Cannons 1 | . . . . 1 . . AOE 12 | . . 2 . 3 7 . Classes Destroyed 13 | 1 3 3 4 1 1 . Worker 2 | . . 1 1 . . . Builder 1 | . 1 . . . . . Hauler 1 | . . . 1 . . . Recycler 11 | 1 1 4 4 1 . . Mechanic 1 | . . . 1 . . . Operator 1 | . 1 . . . . . Watcher 2 | . . . 2 . . . Swarmer 10 | . . 2 4 4 . . Grunt 24 | . 4 . 18 2 . . Duelist 1 | . . . 1 . . . Sentry 9 | . . 2 7 . . . Demolisher 1 | . . . . 1 . . Assembled 7 | . . . . . 7 . Best Kill Streak 7 | 1 1 2 6 3 7 . Combat Bots Only 7 | . 1 2 4 3 7 . Max Kills in Single Turn 3 | 1 1 2 2 2 3 . Gunslinging 1 | . . . 1 1 . . Exploded 3 | . . 2 . 2 3 . Melee 1 | . 1 . . . . . Uniques/NPCs Destroyed 1 | . . . . 1 . . 8R-AWN (-9/Mines) Combat | -11 -10 -10 -9 -9 -9 -8 -------- Run | Scr Mat Min Mat Min Exi Min Damage Taken 3747 | . 202 491 2504 269 103 178 Core 482 | . 18 51 279 45 . 89 Absorbed by Shields . | . . . . . . . Core Remaining (%) 86 | 100 . 72 . . . . Volleys Fired 233 | 2 22 22 112 62 6 7 Largest 2 | 2 2 2 2 2 1 2 Hottest 80 | 40 40 80 68 46 33 46 Shots Fired 440 | 4 43 43 219 111 6 14 Gun 396 | 4 43 41 219 75 . 14 Cannon 2 | . . 2 . . . . Launcher 8 | . . . . 2 6 . Special 34 | . . . . 34 . . Kinetic 371 | 4 43 30 205 75 . 14 Thermal 36 | . . 2 . 34 . . Explosive 8 | . . . . 2 6 . Electromagnetic 25 | . . 11 14 . . . Robot Hit Streak 20 | 3 9 10 15 20 . 12 Robot Miss Streak 4 | . 4 1 4 2 1 1 Penetration Max . | . . . . . . . Secondary Targets 4 | . . . 3 1 . . Max Gunslinging Chain 1 | . . . 1 1 . . Shots Hit Robots 339 | 3 39 29 170 85 . 13 Core Hits 139 | 2 13 15 69 24 14 2 Critical Hits 11 | . 1 . 2 8 . . Critical Kills 2 | . . . . 2 . . Critical Parts Destroyed 3 | . 1 . 2 . . . Melee Attacks 26 | . 12 . 14 . . . Impact . | . . . . . . . Slashing 26 | . 12 . 14 . . . Piercing . | . . . . . . . Sneak Attacks 7 | . 6 . 1 . . . Combat Hostiles . | . . . . . . . Follow-up Attacks . | . . . . . . . Damage Inflicted 5690 | 35 810 400 2679 1209 421 136 Guns 4065 | 35 320 324 2429 821 . 136 Cannons . | . . . . . . . Explosions 829 | . . 76 . 332 421 . Melee 740 | . 490 . 250 . . . Ramming . | . . . . . . . Kinetic 3764 | 35 320 189 2263 821 . 136 Thermal 120 | . . 64 . 56 . . Explosive 753 | . . . . 332 421 . Electromagnetic 313 | . . 147 166 . . . Impact . | . . . . . . . Slashing 740 | . 490 . 250 . . . Piercing . | . . . . . . . Highest Corruption 2 | . 2 2 . . . . Average Corruption 2 | . 2 2 . . . . Corruption Purged . | . . . . . . . Effects 12 | . 5 7 . . . . Message Errors 5 | . 3 2 . . . . Heat Flow Errors 1 | . . 1 . . . . Energy Discharges 2 | . 1 1 . . . . Data Loss (minor) 1 | . 1 . . . . . Targeting Errors 2 | . . 2 . . . . Weapon Failures 1 | . . 1 . . . . Overload Shots . | . . . . . . . Overflow Damage 357 | . 231 . 74 41 11 . Projectiles . | . . . . . . . Explosions 52 | . . . . 41 11 . Melee 305 | . 231 . 74 . . . Knockbacks . | . . . . . . . Impact . | . . . . . . . Kinetic . | . . . . . . . Secondary . | . . . . . . . Self-Inflicted Damage 59 | . . 6 . 53 . . Shots 3 | . . 1 . 2 . . Rammed . | . . . . . . . Targets Rammed . | . . . . . . . Kicked . | . . . . . . . Crushed . | . . . . . . . Highest Temperature 251 | . 18 251 150 54 . . Average Temperature 28 | . 10 41 27 23 . . Received Heat Transfer 1203 | . 117 126 960 . . . Siege Activations . | . . . . . . . Robots Corrupted . | . . . . . . . Combat Hostiles . | . . . . . . . Parts Fried . | . . . . . . . Impact Corruptions . | . . . . . . . Robots Melted . | . . . . . . . Combat Hostiles . | . . . . . . . Parts Melted . | . . . . . . . Heat Transferred 358 | . . 50 . 308 . . Parts Sabotaged . | . . . . . . . Parts Stolen . | . . . . . . . Parts Stripped . | . . . . . . . Power Chain Reactions 2 | . . 2 . . . . Missiles Intercepted . | . . . . . . . Alert | -11 -10 -10 -9 -9 -9 -8 ------- Run | Scr Mat Min Mat Min Exi Min Peak Influence 399 | 5 100 85 399 309 . . Average Influence 125 | 1 24 50 202 168 . . Maximum Alert Level 1 | . . . 1 1 . . Low Security (%) 76 | 100 100 100 52 76 . 100 Level 1 23 | . . . 47 23 . . Level 2 . | . . . . . . . Level 3 . | . . . . . . . Level 4 . | . . . . . . . Level 5 . | . . . . . . . High Security . | . . . . . . . Max Security . | . . . . . . . Squads Dispatched 5 | . 1 . 4 . . . Investigation 2 | . . . 2 . . . Extermination . | . . . . . . . Reinforcement 3 | . 1 . 2 . . . Assault . | . . . . . . . Garrison . | . . . . . . . Intercept . | . . . . . . . Construction Impeded . | . . . . . . . Haulers Reinforced . | . . . . . . . Stealth | -11 -10 -10 -9 -9 -9 -8 --------- Run | Scr Mat Min Mat Min Exi Min Distress Signals 4 | . . . 4 . . . Communications Jammed . | . . . . . . . Distress Signals . | . . . . . . . Times Spotted 72 | . 8 5 44 11 3 1 Peak Tracking Total 8 | . 2 3 6 5 8 2 Tactical Retreats 10 | . 2 . 5 2 1 . Traps | -11 -10 -10 -9 -9 -9 -8 ------- Run | Scr Mat Min Mat Min Exi Min Traps Triggered 2 | . 1 . 1 . . . Indirectly . | . . . . . . . Trap Hack Attempts . | . . . . . . . Triggered . | . . . . . . . Disarmed . | . . . . . . . Reprogrammed . | . . . . . . . Reused 1 | . . 1 . . . . Traps Extracted . | . . . . . . . Installed 1 | . . 1 . . . . Triggered 1 | . . 1 . . . . Machines | -11 -10 -10 -9 -9 -9 -8 ---------- Run | Scr Mat Min Mat Min Exi Min Machines Disabled 3 | . 1 . 1 . 1 . Max in Single Turn 1 | . 1 . 1 . 1 . Machines Sabotaged . | . . . . . . . Garrisons Compromised . | . . . . . . . Overloaded Fab Kills . | . . . . . . . Fab Network Shutdowns . | . . . . . . . Hacking | -11 -10 -10 -9 -9 -9 -8 --------- Run | Scr Mat Min Mat Min Exi Min Machines Accessed 10 | . 5 . 4 . 1 . Terminals 5 | . 3 . 2 . . . Fabricators . | . . . . . . . Repair Stations 2 | . . . 2 . . . Recycling Units 2 | . 2 . . . . . Scanalyzers . | . . . . . . . Garrison Access . | . . . . . . . Total Hacks 19 | . 10 . 8 . 1 . Successful 13 | . 6 . 6 . 1 . Failed 6 | . 4 . 2 . . . Catastrophic . | . . . . . . . Database Lockouts . | . . . . . . . Manual 10 | . 6 . 3 . 1 . Terminals 11 | . 8 . 3 . . . Fabricators . | . . . . . . . Repair Stations 5 | . . . 5 . . . Recycling Units 2 | . 2 . . . . . Scanalyzers . | . . . . . . . Garrison Access . | . . . . . . . Terminal Hacks 5 | . 3 . 1 . 1 . Emergency Access Points 1 | . 1 . . . . . Locate Traps 1 | . 1 . . . . . Zone Layout 2 | . 1 . 1 . . . EX-Prototype ID Bank 1 | . . . . . 1 . Fabricator Hacks . | . . . . . . . Repair Station Hacks 4 | . . . 4 . . . Scan Component 2 | . . . 2 . . . Repair 2 | . . . 2 . . . Recycling Unit Hacks 2 | . 2 . . . . . Retrieve Components 2 | . 2 . . . . . Scanalyzer . | . . . . . . . Garrison Access Hacks . | . . . . . . . Unauthorized Hacks 2 | . 1 . 1 . . . Terminals 2 | . 1 . 1 . . . Track 1 | . 1 . . . . . Botnet 1 | . . . 1 . . . Fabricators . | . . . . . . . Repair Stations . | . . . . . . . Recycling Units . | . . . . . . . Scanalyzers . | . . . . . . . Garrison Access . | . . . . . . . Data Cores Recovered . | . . . . . . . Used . | . . . . . . . Hacking Detections 7 | . 4 . 3 . . . Full Trace Events 1 | . . . 1 . . . Feedback Events . | . . . . . . . Feedback Blocked . | . . . . . . . Robot Schematics Acquired . | . . . . . . . Robots Built . | . . . . . . . Matter . | . . . . . . . Time . | . . . . . . . Total Robot Build Rating . | . . . . . . . Part Schematics Acquired . | . . . . . . . Parts Built . | . . . . . . . Matter . | . . . . . . . Time . | . . . . . . . Total Part Build Rating . | . . . . . . . Parts Repaired 2 | . . . 2 . . . Time 52 | . . . 52 . . . Parts Recycled . | . . . . . . . Recycled Matter . | . . . . . . . Retrieved Matter . | . . . . . . . Retrieved Components 8 | . 8 . . . . . Parts Scanalyzed . | . . . . . . . Part Schematics Acquired . | . . . . . . . Parts Damaged . | . . . . . . . Bothacking | -11 -10 -10 -9 -9 -9 -8 ------------ Run | Scr Mat Min Mat Min Exi Min Used RIF Installer . | . . . . . . . Robots Hacked . | . . . . . . . Non-combat . | . . . . . . . Combat . | . . . . . . . Robot Hacks Applied . | . . . . . . . Relay Couplers Released . | . . . . . . . Robots Rewired . | . . . . . . . Allies Hacked . | . . . . . . . Hacks Repelled . | . . . . . . . Allies | -11 -10 -10 -9 -9 -9 -8 -------- Run | Scr Mat Min Mat Min Exi Min Total Allies . | . . . . . . . Largest Group . | . . . . . . . Highest-Rated Group . | . . . . . . . Highest-Rated Ally . | . . . . . . . Total Orders . | . . . . . . . Ally Attacks . | . . . . . . . Total Damage . | . . . . . . . Kills . | . . . . . . . Allies Corrupted . | . . . . . . . Allies Melted . | . . . . . . . Intel | -11 -10 -10 -9 -9 -9 -8 ------- Run | Scr Mat Min Mat Min Exi Min Robot Analysis Total . | . . . . . . . Derelict Logs Recovered 1 | . . 1 . . . . Drone Launches . | . . . . . . . Drone Recoveries . | . . . . . . . Exploration | -11 -10 -10 -9 -9 -9 -8 ------------- Run | Scr Mat Min Mat Min Exi Min Turns Passed 3939 | 63 948 377 1413 579 541 18 Spaces Moved 1742 | 53 438 243 446 149 413 . Core 4 | 4 . . . . . . Treads 509 | . . . 414 95 . . Legs . | . . . . . . . Wheels 1229 | 49 438 243 32 54 413 . Hover . | . . . . . . . Flight . | . . . . . . . Fastest Speed 50 | 50 80 100 110 130 110 . Average Speed 136 | 80 102 108 191 177 121 . Slowest Speed 260 | 100 110 110 220 260 130 . Overloaded Moves . | . . . . . . . Propulsion Burnouts . | . . . . . . . Robots Hopped . | . . . . . . . Cave-ins Triggered . | . . . . . . . Exploration Rate (%) 32 | 4 52 45 46 27 49 4 Regions Visited 6 Branch Regions 4 Pre-discovered Areas . | . . . . . . . Known Exits Taken . | . . . . . . . Unknown Exits Taken 6 | 1 1 1 1 1 1 . Scrap Searched . | . . . . . . . Spaces Dug 35 | . 2 . 9 24 . . Terrain Destroyed 79 | . 2 9 9 24 35 . Melee 11 | . 2 . 9 . . . Projectile . | . . . . . . . AOE 68 | . . 9 . 24 35 . Actions | -11 -10 -10 -9 -9 -9 -8 --------- Run | Scr Mat Min Mat Min Exi Min Total 2811 | 66 873 319 782 318 446 7 Wait 602 | . 381 25 117 74 5 . Move 1736 | 52 437 242 445 148 412 . Hop . | . . . . . . . Pick Up 76 | 6 11 11 25 6 17 . Fast Attach 29 | 5 1 5 12 5 1 . Attach 25 | 1 2 2 17 3 . . Detach 10 | . 1 . 4 5 . . Swap 30 | . 2 3 14 8 3 . Drop 42 | . 4 8 22 6 2 . Fire 233 | 2 22 22 112 62 6 7 Melee 26 | . 12 . 14 . . . Ram . | . . . . . . . Kick . | . . . . . . . Crush . | . . . . . . . Escape Stasis . | . . . . . . . Rewire 1 | . . . . 1 . . Trap 1 | . . 1 . . . . Miscellaneous . | . . . . . . . Route ------- -11/Scrapyard -10/Materials (discovered 3 exits: *Mat x2 / [*Min]) -10/Mines -9/Materials (discovered 3 exits: *Mat x2 / [*Min]) -9/Mines -9/Exiles -8/Mines History --------- Turn | Location | Event 26 | -11/Scrapyard | Discovered new exit (range 16) 64 | -11/Scrapyard | Entered Materials 89 | -10/Materials | Discovered new exit (range 16) 135 | -10/Materials | Discovered new exit (range 13) 315 | -10/Materials | Build established: Mutant 410 | -10/Materials | Discovered new exit (range 14) 1012 | -10/Materials | Entered Mines 1093 | -10/Mines | Lost 4 parts (1p3w) 1127 | -10/Mines | Found a hidden stash of uninstalled traps 1147 | -10/Mines | Learned 4 Materials zone layouts 1365 | -10/Mines | A weapon hastily lodged in a ceiling crevice suddenly fell to the ground 1381 | -10/Mines | Discovered new exit (range 8) 1389 | -10/Mines | Entered Materials 1389 | -9/Materials | Evolved 2 slots: Utility x2 1390 | -9/Materials | Identified exit to Materials 1507 | -9/Materials | Lost 3 parts (1n2w) 1679 | -9/Materials | Repaired Lgt. Armor Plating 1944 | -9/Materials | Discovered new exit (range 8) 2009 | -9/Materials | Build established: Hauler-Mutant 2129 | -9/Materials | Repaired Lgt. Armor Plating 2290 | -9/Materials | Lost 3 parts (1p1u1w) 2535 | -9/Materials | Core integrity fell below 50% 2575 | -9/Materials | Lost 4 parts (1p1n2u) 2802 | -9/Materials | Entered Mines 2803 | -9/Mines | Assembled infested the area 2804 | -9/Mines | Found a damaged Exp. Sensor Array with a note attached 2809 | -9/Mines | Found Prototype Device 2810 | -9/Mines | Met a Derelict bent on vengeance 2931 | -9/Mines | Met 8R-AWN 2971 | -9/Mines | Attacked by 8R-AWN 3218 | -9/Mines | Core integrity fell below 20% 3220 | -9/Mines | Destroyed 8R-AWN 3226 | -9/Mines | Found Prototype Ballistic Gun 3226 | -9/Mines | Identified 8R-AWN's Boregun 3231 | -9/Mines | Found 8R-AWN's Boregun 3244 | -9/Mines | Found Prototype Device 3244 | -9/Mines | Identified AS-neutralizer No. 17b 3272 | -9/Mines | Found Prototype Processor 3375 | -9/Mines | Discovered new exit (range 5) 3381 | -9/Mines | Entered Exiles 3381 | -9/Exiles | Attacked by the Exiles 3436 | -9/Exiles | Destroyed 7 combat bots 3687 | -9/Exiles | Opened EX-Vault 3708 | -9/Exiles | Found Lightpack 2.0 3908 | -9/Exiles | Discovered new exit (range 14) 3922 | -9/Exiles | Left Exiles lab with Lightpack 2.0 3922 | -9/Exiles | Entered Mines 3940 | -8/Mines | Destroyed by H-55 Commando with Gauss Rifle Last Messages --------------- 03717_ Acquired Lgt. Treads. 03719_ Acquired Hcp. Storage Unit. 03721_ Acquired Hacking Suite. 03724_ Acquired Prototype Device. 03726_ Acquired Hrd. Medium Armor Plating. 03728_ Acquired AS-neutralizer No. 17b. 03730_ Acquired Hrd. Medium Armor Plating. 03735_ Acquired Minigun. 03736_ Extracted 2 energy. 03737_ Acquired Med. Battery. 03739_ Acquired Minigun. 03741_ Acquired Hrd. Medium Armor Plating. 03829_ Acquired Humpback. 03908_ EXIT=FOUND A strange signal echoes through the mines. LOCATION=UNKNOWN GOAL=ESCAPE 03923_ Slug penetrates Wall. 03928_ Penetrated by Slug. [Achievement: I Was Wrong!] Map ----- +----------------------------------------------------+ | | | | | | | | | | | | | | | | | | | | | ??????????????????????????????????? | | ??????????????????????????????????? | | ??????????????????????????????????? | | ??????????????????????????????????? | | ??????????????????????????????????? | | ??????????????????????????????????? | | ??????????????????????????????????? | | ??????????????????????????????????? | | ????????????####??????????????????? | | ???????????# ####???????????????? | | ??????##### #???????????????? | | ?????## ????????????????? | | ????## ??????????????????? | | ???## h #???????????????????? | | ???# #????????????????????? | | ??# @ #????????????????????? | | ??# ##????????????????????? | | ??# #?????????????????????? | | ??## ## #?????????????????????? | | ???###??## ##?????????????????????? | | ?????????###??????????????????????? | | ??????????????????????????????????? | | ??????????????????????????????????? | | ??????????????????????????????????? | | ??????????????????????????????????? | | ??????????????????????????????????? | | ??????????????????????????????????? | | ??????????????????????????????????? | | ??????????????????????????????????? | | ??????????????????????????????????? | | ??????????????????????????????????? | | ??????????????????????????????????? | | ??????????????????????????????????? | | ??????????????????????????????????? | | ??????????????????????????????????? | | ??????????????????????????????????? | | ??????????????????????????????????? | | ??????????????????????????????????? | | ??????????????????????????????????? | | ??????????????????????????????????? | +----------------------------------------------------+ Best States ------------- Heat Dissipation 54 Energy Generation 14 Energy Capacity 275 Matter Stores 300 Matter Capacity 300 Sight Range 16 Terrain Scan Density 10 Armor Coverage 450 Evasion (%) 44 Recoil Reduction 2 Item Schematics ----------------- None Robot Schematics ------------------ None Fabricated ------------ Nothing Alien Tech Used ----------------- None Achievements -------------- I Was Wrong! Challenges ------------ None Game ------ Seed ArmageddonArchitectPrototype Manual? 0 Play Time 00:31:02 Cumulative 263.2 hours Start 2020.06.28 @ 15:32:09 End 2020.06.28 @ 17:14:07 Sessions 1 Manual Loads 0 Difficulty Rogue Special Mode None Game No. 199 Rogue 199 Adventurer 0 Explorer 0 Win Type - Total 5 Types 5/0/0/0/0/0/0 Lore% 75 Gallery% 87 Achievement% 69 Wizard Run 0 Options --------- ASCII 0 Keyboard 0 Movement Numpad Keybinds 0 Fullscreen 2 Font 18/SmallcapsGlow Map View 76x50 Tactical HUD 1 Map Filters NONE Filters NONE Steam X RUN: b3ab2a90-02b9-4eb1-b45b-249c86b8cd20